[Event "Schack-SM 2024: Veteran-SM 65+"]
[Site "Fortnox Arena, Hejaregatan 5, Vaxjo, Sweden"]
[Date "2024.07.01"]
[Round "3.5"]
[White "Vrabec, Josip"]
[Black "Blomstrom, Lars"]
[Result "0-1"]
[TimeControl "90 minutes for 40 moves + 30 minutes for the rest of the game + 30 seconds per move from move one."]
[WhiteElo "1926"]
[BlackElo "2122"]

1. e4 {[%clk 01:30:58]} e5 {[%clk 01:30:53]} {[%emt 00:00:06]} 2. Nf3 {[%clk
01:31:08]} {[%emt 00:00:19]} Nc6 {[%clk 01:31:19]} {[%emt 00:00:05]} 3. Bb5
{[%clk 01:31:24]} {[%emt 00:00:15]} a6 {[%clk 01:31:45]} {[%emt 00:00:04]} 4.
Bxc6 {[%clk 01:31:05]} {[%emt 00:00:48]} dxc6 {[%clk 01:32:11]} {[%emt
00:00:04]} 5. O-O {[%clk 01:29:22]} {[%emt 00:02:13]} Qd6 {[%clk 01:31:49]}
{[%emt 00:00:51]} 6. d4 {[%clk 01:29:09]} {[%emt 00:00:44]} exd4 {[%clk
01:32:13]} {[%emt 00:00:05]} 7. Qxd4 {[%clk 01:27:15]} {[%emt 00:02:25]} Qxd4
{[%clk 01:32:19]} {[%emt 00:00:24]} 8. Nxd4 {[%clk 01:27:43]} {[%emt 00:00:02]}
Bd7 {[%clk 01:32:36]} {[%emt 00:00:13]} 9. Bg5 {[%clk 01:23:49]} {[%emt
00:04:24]} f6 {[%clk 01:27:09]} {[%emt 00:05:57]} 10. Bf4 {[%clk 01:22:45]}
{[%emt 00:01:33]} O-O-O {[%clk 01:27:30]} {[%emt 00:00:09]} 11. c3 {[%clk
01:21:02]} {[%emt 00:02:13]} Ne7 {[%clk 01:23:24]} {[%emt 00:04:36]} 12. Nd2
{[%clk 01:20:00]} {[%emt 00:01:32]} Ng6 {[%clk 01:14:58]} {[%emt 00:08:57]} 13.
Be3 {[%clk 01:18:53]} {[%emt 00:01:36]} Re8 {[%clk 01:12:28]} {[%emt 00:03:00]}
14. Rfe1 {[%clk 01:13:21]} {[%emt 00:06:03]} Ne5 {[%clk 01:06:43]} {[%emt
00:06:14]} 15. Rab1 {[%clk 01:03:30]} {[%emt 00:10:21]} g6 {[%clk 01:01:36]}
{[%emt 00:05:38]} 16. h3 {[%clk 00:54:13]} {[%emt 00:09:46]} Bd6 {[%clk
00:59:03]} {[%emt 00:03:02]} 17. b3 {[%clk 00:52:07]} {[%emt 00:02:37]} c5
{[%clk 00:53:09]} {[%emt 00:06:24]} 18. Ne2 {[%clk 00:51:01]} {[%emt 00:01:36]}
f5 {[%clk 00:51:09]} {[%emt 00:02:29]} 19. f3 {[%clk 00:49:34]} {[%emt
00:01:58]} Bc6 {[%clk 00:42:35]} {[%emt 00:09:04]} 20. Nf4 {[%clk 00:41:51]}
{[%emt 00:08:13]} g5 {[%clk 00:40:37]} {[%emt 00:02:29]} 21. Nd5 {[%clk
00:40:48]} {[%emt 00:01:34]} Bxd5 {[%clk 00:38:29]} {[%emt 00:02:38]} 22. exd5
{[%clk 00:41:15]} {[%emt 00:00:02]} Nd3 {[%clk 00:38:44]} {[%emt 00:00:14]} 23.
Bf2 {[%clk 00:40:22]} {[%emt 00:01:23]} Nxe1 {[%clk 00:38:33]} {[%emt
00:00:42]} 24. Rxe1 {[%clk 00:39:48]} {[%emt 00:01:03]} Rxe1+ {[%clk 00:38:00]}
{[%emt 00:01:03]} 25. Bxe1 {[%clk 00:40:16]} {[%emt 00:00:02]} Re8 {[%clk
00:36:53]} {[%emt 00:01:36]} 26. Kf1 {[%clk 00:40:45]} {[%emt 00:00:03]} b5
{[%clk 00:33:37]} {[%emt 00:03:46]} 27. c4 {[%clk 00:40:47]} {[%emt 00:00:27]}
c6 {[%clk 00:23:28]} {[%emt 00:10:39]} 28. dxc6 {[%clk 00:40:53]} {[%emt
00:00:24]} Kc7 {[%clk 00:23:50]} {[%emt 00:00:08]} 29. g4 {[%clk 00:41:12]}
{[%emt 00:00:11]} Kxc6 {[%clk 00:19:06]} {[%emt 00:05:14]} 30. gxf5 {[%clk
00:41:32]} {[%emt 00:00:11]} Rf8 {[%clk 00:19:20]} {[%emt 00:00:12]} 31. Ne4
{[%clk 00:40:47]} {[%emt 00:01:18]} Rxf5 {[%clk 00:19:43]} {[%emt 00:00:07]} 32.
Ke2 {[%clk 00:41:00]} {[%emt 00:00:16]} h6 {[%clk 00:17:53]} {[%emt 00:02:21]}
33. Bc3 {[%clk 00:39:51]} {[%emt 00:01:40]} Be5 {[%clk 00:15:57]} {[%emt
00:02:26]} 34. Bd2 {[%clk 00:40:18]} {[%emt 00:00:03]} bxc4 {[%clk 00:14:50]}
{[%emt 00:01:38]} 35. bxc4 {[%clk 00:40:45]} {[%emt 00:00:02]} Rf7 {[%clk
00:13:20]} {[%emt 00:01:57]} 36. a4 {[%clk 00:40:54]} {[%emt 00:00:24]} Rb7
{[%clk 00:12:50]} {[%emt 00:00:59]} 37. Nf2 {[%clk 00:41:01]} {[%emt 00:00:24]}
Bd4 {[%clk 00:08:58]} {[%emt 00:04:21]} 38. Ng4 {[%clk 00:41:17]} {[%emt
00:00:15]} h5 {[%clk 00:04:58]} {[%emt 00:04:29]} 39. Nh2 {[%clk 00:41:45]}
{[%emt 00:00:03]} Be5 {[%clk 00:04:54]} {[%emt 00:00:33]} 40. Nf1 {[%clk
00:42:04]} {[%emt 00:00:11]} Bf4 {[%clk 00:05:00]} {[%emt 00:00:25]} 0-1

[Event "Schack-SM 2024: Veteran-SM 65+"]
[Site "Fortnox Arena, Hejaregatan 5, Vaxjo, Sweden"]
[Date "2024.07.01"]
[Round "3.6"]
[White "Larsson, Per-Olov"]
[Black "Lagerborg, Krister"]
[Result "0-1"]
[TimeControl "90 minutes for 40 moves + 30 minutes for the rest of the game + 30 seconds per move from move one."]
[WhiteElo "1933"]
[BlackElo "2091"]

1. e4 {[%clk 01:30:54]} {[%emt 00:00:02]} c5 {[%clk 01:30:56]} {[%emt
00:00:05]} 2. c3 {[%clk 01:31:02]} {[%emt 00:00:22]} Nf6 {[%clk 01:31:18]}
{[%emt 00:00:07]} 3. e5 {[%clk 01:31:15]} {[%emt 00:00:17]} Nd5 {[%clk
01:31:42]} {[%emt 00:00:06]} 4. Bc4 {[%clk 01:31:16]} {[%emt 00:00:29]} Nb6
{[%clk 01:31:55]} {[%emt 00:00:18]} 5. Bb3 {[%clk 01:31:38]} {[%emt 00:00:08]}
d5 {[%clk 01:32:01]} {[%emt 00:00:25]} 6. exd6 {[%clk 01:31:15]} {[%emt
00:00:52]} Qxd6 {[%clk 01:32:10]} {[%emt 00:00:21]} 7. Nf3 {[%clk 01:30:40]}
{[%emt 00:01:05]} c4 {[%clk 01:32:11]} {[%emt 00:00:28]} 8. Bc2 {[%clk
01:30:45]} {[%emt 00:00:26]} Qe6+ {[%clk 01:32:24]} {[%emt 00:00:17]} 9. Qe2
{[%clk 01:29:58]} {[%emt 00:01:17]} Qxe2+ {[%clk 01:32:48]} {[%emt 00:00:06]}
10. Kxe2 {[%clk 01:30:19]} {[%emt 00:00:09]} f6 {[%clk 01:32:55]} {[%emt
00:00:23]} 11. b3 {[%clk 01:28:59]} {[%emt 00:01:51]} e5 {[%clk 01:32:40]}
{[%emt 00:00:44]} 12. Ba3 {[%clk 01:27:27]} {[%emt 00:02:01]} Nc6 {[%clk
01:27:35]} {[%emt 00:05:36]} 13. Bxf8 {[%clk 01:23:27]} {[%emt 00:04:30]} Kxf8
{[%clk 01:27:57]} {[%emt 00:00:07]} 14. Na3 {[%clk 01:23:40]} {[%emt 00:00:18]}
Be6 {[%clk 01:23:59]} {[%emt 00:04:28]} 15. bxc4 {[%clk 01:18:34]} {[%emt
00:05:37]} Nxc4 {[%clk 01:23:21]} {[%emt 00:01:07]} 16. Nb5 {[%clk 01:14:57]}
{[%emt 00:04:07]} Rd8 {[%clk 01:16:52]} {[%emt 00:06:58]} 17. Bb3 {[%clk
01:10:48]} {[%emt 00:04:39]} a6 {[%clk 01:13:53]} {[%emt 00:03:30]} 18. Na3
{[%clk 01:09:40]} {[%emt 00:01:38]} N6a5 {[%clk 01:13:34]} {[%emt 00:00:49]} 19.
Nxc4 {[%clk 01:07:29]} {[%emt 00:02:41]} Bxc4+ {[%clk 01:13:33]} {[%emt
00:00:31]} 20. Bxc4 {[%clk 01:07:39]} {[%emt 00:00:20]} Nxc4 {[%clk 01:13:55]}
{[%emt 00:00:08]} 21. Rab1 {[%clk 01:07:06]} {[%emt 00:01:03]} Rd7 {[%clk
01:12:55]} {[%emt 00:01:30]} 22. Rb4 {[%clk 01:04:33]} {[%emt 00:03:03]} Na5
{[%clk 01:11:36]} {[%emt 00:01:48]} 23. d4 {[%clk 00:58:21]} {[%emt 00:06:43]}
exd4 {[%clk 00:56:06]} {[%emt 00:15:59]} 24. Rxd4 {[%clk 00:49:51]} {[%emt
00:09:01]} Re7+ {[%clk 00:51:44]} {[%emt 00:04:51]} 25. Kd2 {[%clk 00:46:04]}
{[%emt 00:04:18]} Kf7 {[%clk 00:51:54]} {[%emt 00:00:20]} 26. Re1 {[%clk
00:45:43]} {[%emt 00:00:51]} Rc7 {[%clk 00:48:05]} {[%emt 00:04:19]} 27. Kd3
{[%clk 00:36:26]} {[%emt 00:09:47]} Rhc8 {[%clk 00:48:09]} {[%emt 00:00:26]} 28.
Rc1 {[%clk 00:35:54]} {[%emt 00:01:01]} Nc4 {[%clk 00:47:38]} {[%emt 00:01:01]}
29. Rc2 {[%clk 00:31:51]} {[%emt 00:04:33]} Na3 {[%clk 00:46:11]} {[%emt
00:01:57]} 30. Rc1 {[%clk 00:31:01]} {[%emt 00:01:21]} Nb5 {[%clk 00:46:24]}
{[%emt 00:00:17]} 31. Rh4 {[%clk 00:27:04]} {[%emt 00:04:27]} Rxc3+ {[%clk
00:45:46]} {[%emt 00:01:08]} 32. Rxc3 {[%clk 00:27:29]} {[%emt 00:00:05]} Rxc3+
{[%clk 00:46:04]} {[%emt 00:00:13]} 33. Kd2 {[%clk 00:27:53]} {[%emt 00:00:03]}
Ra3 {[%clk 00:46:10]} {[%emt 00:00:26]} 34. Rxh7 {[%clk 00:28:14]} {[%emt
00:00:09]} Rxa2+ {[%clk 00:46:33]} {[%emt 00:00:07]} 35. Ke3 {[%clk 00:28:32]}
{[%emt 00:00:11]} Nc3 {[%clk 00:46:01]} {[%emt 00:01:02]} 36. Nd2 {[%clk
00:28:32]} {[%emt 00:00:30]} Nd1+ {[%clk 00:44:35]} {[%emt 00:01:57]} 0-1

[Event "Schack-SM 2024: Veteran-SM 65+"]
[Site "Fortnox Arena, Hejaregatan 5, Vaxjo, Sweden"]
[Date "2024.07.01"]
[Round "3.7"]
[White "Gillefalk, Bjorn"]
[Black "Ekelund, Kurt"]
[Result "1/2-1/2"]
[TimeControl "90 minutes for 40 moves + 30 minutes for the rest of the game + 30 seconds per move from move one."]
[WhiteElo "2063"]
[BlackElo "1907"]

1. Nf3 {[%clk 01:30:54]} {[%emt 00:00:04]} Nf6 {[%clk 01:24:40]} {[%emt
00:06:22]} 2. g3 {[%clk 01:28:18]} {[%emt 00:03:05]} g6 {[%clk 01:24:45]}
{[%emt 00:00:24]} 3. Bg2 {[%clk 01:28:36]} {[%emt 00:00:14]} Bg7 {[%clk
01:25:04]} {[%emt 00:00:10]} 4. d4 {[%clk 01:28:56]} {[%emt 00:00:10]} d6
{[%clk 01:25:23]} {[%emt 00:00:10]} 5. O-O {[%clk 01:28:21]} {[%emt 00:01:06]}
O-O {[%clk 01:25:43]} {[%emt 00:00:09]} 6. c4 {[%clk 01:28:49]} {[%emt
00:00:04]} Nc6 {[%clk 01:25:33]} {[%emt 00:00:39]} 7. d5 {[%clk 01:28:25]}
{[%emt 00:00:55]} Na5 {[%clk 01:25:22]} {[%emt 00:00:40]} 8. Na3 {[%clk
01:27:40]} {[%emt 00:01:16]} c5 {[%clk 01:21:43]} {[%emt 00:04:08]} 9. Nd2
{[%clk 01:08:26]} {[%emt 00:19:44]} a6 {[%clk 01:19:32]} {[%emt 00:02:41]} 10.
Rb1 {[%clk 01:07:11]} {[%emt 00:01:45]} b6 {[%clk 01:06:44]} {[%emt 00:13:18]}
11. b3 {[%clk 01:04:42]} {[%emt 00:02:59]} Bd7 {[%clk 01:06:34]} {[%emt
00:00:39]} 12. Bb2 {[%clk 01:00:37]} {[%emt 00:04:36]} b5 {[%clk 01:05:31]}
{[%emt 00:01:32]} 13. e4 {[%clk 00:50:34]} {[%emt 00:10:35]} Rb8 {[%clk
01:05:18]} {[%emt 00:00:41]} 14. Re1 {[%clk 00:42:08]} {[%emt 00:08:57]} bxc4
{[%clk 01:03:42]} {[%emt 00:02:05]} 15. Naxc4 {[%clk 00:40:45]} {[%emt
00:01:55]} Nxc4 {[%clk 01:03:06]} {[%emt 00:01:05]} 16. Nxc4 {[%clk 00:41:08]}
{[%emt 00:00:07]} Bb5 {[%clk 01:00:31]} {[%emt 00:03:05]} 17. Bf1 {[%clk
00:29:17]} {[%emt 00:12:22]} Nd7 {[%clk 00:51:49]} {[%emt 00:09:11]} 18. Bxg7
{[%clk 00:29:33]} {[%emt 00:00:15]} Kxg7 {[%clk 00:52:16]} {[%emt 00:00:02]} 19.
Qd2 {[%clk 00:28:56]} {[%emt 00:01:07]} Bxc4 {[%clk 00:33:15]} {[%emt
00:19:30]} 20. Bxc4 {[%clk 00:28:49]} {[%emt 00:00:37]} Ne5 {[%clk 00:33:31]}
{[%emt 00:00:15]} 21. Be2 {[%clk 00:26:26]} {[%emt 00:02:53]} Rb4 {[%clk
00:33:10]} {[%emt 00:00:51]} 22. f4 {[%clk 00:24:27]} {[%emt 00:02:29]} Nd7
{[%clk 00:32:33]} {[%emt 00:01:06]} 23. Bxa6 {[%clk 00:20:10]} {[%emt
00:04:48]} Rd4 {[%clk 00:32:44]} {[%emt 00:00:18]} 24. Qc3 {[%clk 00:15:44]}
{[%emt 00:04:57]} Kg8 {[%clk 00:33:04]} {[%emt 00:00:09]} 25. Re2 {[%clk
00:08:55]} {[%emt 00:07:20]} Nf6 {[%clk 00:27:52]} {[%emt 00:05:41]} 26. Rbe1
{[%clk 00:08:58]} {[%emt 00:00:29]} Qa8 {[%clk 00:25:31]} {[%emt 00:02:49]} 27.
Bc4 {[%clk 00:08:00]} {[%emt 00:01:29]} Qa3 {[%clk 00:25:53]} {[%emt 00:00:07]}
28. Kg2 {[%clk 00:07:47]} {[%emt 00:00:44]} Rb8 {[%clk 00:26:13]} {[%emt
00:00:10]} 29. Qf3 {[%clk 00:07:36]} {[%emt 00:00:41]} Nd7 {[%clk 00:23:00]}
{[%emt 00:03:42]} 30. e5 {[%clk 00:05:13]} {[%emt 00:02:54]} Nb6 {[%clk
00:23:18]} {[%emt 00:00:11]} 31. exd6 {[%clk 00:04:52]} {[%emt 00:00:52]} exd6
{[%clk 00:23:40]} {[%emt 00:00:08]} 32. f5 {[%clk 00:03:57]} {[%emt 00:01:25]}
Qa8 {[%clk 00:19:28]} {[%emt 00:04:42]} 33. f6 {[%clk 00:03:32]} {[%emt
00:00:56]} Nxd5 {[%clk 00:18:17]} {[%emt 00:01:40]} 34. Bxd5 {[%clk 00:02:02]}
{[%emt 00:02:00]} Rxd5 {[%clk 00:18:32]} {[%emt 00:00:15]} 35. Kg1 {[%clk
00:02:10]} {[%emt 00:00:23]} h5 {[%clk 00:14:39]} 1/2-1/2

[Event "Schack-SM 2024: Veteran-SM 65+"]
[Site "Fortnox Arena, Hejaregatan 5, Vaxjo, Sweden"]
[Date "2024.06.30"]
[Round "2.1"]
[White "Westin, Ake"]
[Black "Engstrom, Kaj"]
[Result "0-1"]
[TimeControl "90 minutes for 40 moves + 30 minutes for the rest of the game + 30 seconds per move from move one."]
[WhiteElo "2023"]
[BlackElo "2163"]

1. Nf3 {[%clk 01:30:47]} {[%emt 00:00:13]} d5 {[%clk 01:30:56]} {[%emt
00:00:04]} 2. g3 {[%clk 01:31:01]} {[%emt 00:00:17]} Nf6 {[%clk 01:30:05]}
{[%emt 00:01:20]} 3. Bg2 {[%clk 01:30:50]} {[%emt 00:00:41]} Bf5 {[%clk
01:30:23]} {[%emt 00:00:12]} 4. O-O {[%clk 01:29:34]} {[%emt 00:01:45]} e6
{[%clk 01:21:36]} {[%emt 00:09:18]} 5. d3 {[%clk 01:28:29]} {[%emt 00:01:34]}
h6 {[%clk 01:19:29]} {[%emt 00:02:39]} 6. Nbd2 {[%clk 01:28:06]} {[%emt
00:00:51]} Nbd7 {[%clk 01:13:50]} {[%emt 00:06:11]} 7. e3 {[%clk 01:27:01]}
{[%emt 00:01:35]} c6 {[%clk 01:12:11]} {[%emt 00:02:09]} 8. Qe2 {[%clk
01:19:29]} {[%emt 00:08:01]} e5 {[%clk 01:06:18]} {[%emt 00:06:24]} 9. e4
{[%clk 01:07:21]} {[%emt 00:12:38]} dxe4 {[%clk 01:03:09]} {[%emt 00:03:39]} 10.
dxe4 {[%clk 01:07:00]} {[%emt 00:00:50]} Bg4 {[%clk 01:01:56]} {[%emt
00:01:43]} 11. Nc4 {[%clk 01:04:41]} {[%emt 00:02:48]} Qc7 {[%clk 01:01:42]}
{[%emt 00:00:45]} 12. h3 {[%emt 00:18:18]} Be6 13. Nh4 {[%clk 00:50:48]} {[%emt
00:00:54]} g6 {[%clk 00:53:01]} {[%emt 00:05:23]} 14. f4 {[%clk 00:48:36]}
{[%emt 00:02:41]} Nh5 {[%clk 00:51:11]} {[%emt 00:02:20]} 15. Rf3 {[%clk
00:37:03]} {[%emt 00:12:03]} exf4 {[%clk 00:46:25]} {[%emt 00:05:17]} 16. g4
{[%clk 00:36:24]} {[%emt 00:01:08]} Bxc4 {[%clk 00:44:39]} {[%emt 00:02:16]} 17.
Qxc4 {[%clk 00:36:35]} {[%emt 00:00:19]} Ne5 {[%clk 00:45:01]} {[%emt
00:00:09]} 18. Qc3 {[%clk 00:35:16]} {[%emt 00:01:49]} Nxf3+ {[%clk 00:44:35]}
{[%emt 00:00:56]} 19. Qxf3 {[%clk 00:35:13]} {[%emt 00:00:31]} Ng3 {[%clk
00:37:46]} {[%emt 00:07:19]} 20. Kh2 {[%clk 00:32:14]} {[%emt 00:03:29]} Bd6
{[%clk 00:35:37]} {[%emt 00:02:40]} 21. Bd2 {[%clk 00:30:24]} {[%emt 00:02:19]}
Be5 {[%clk 00:35:15]} {[%emt 00:00:53]} 22. Bc3 {[%clk 00:23:56]} {[%emt
00:06:59]} O-O-O {[%clk 00:34:50]} {[%emt 00:00:55]} 0-1

[Event "Schack-SM 2024: Veteran-SM 65+"]
[Site "Fortnox Arena, Hejaregatan 5, Vaxjo, Sweden"]
[Date "2024.06.30"]
[Round "2.2"]
[White "Green, Per"]
[Black "Malmdin, Nils-Ake"]
[Result "0-1"]
[TimeControl "90 minutes for 40 moves + 30 minutes for the rest of the game + 30 seconds per move from move one."]
[BlackTitle "FM"]
[WhiteElo "1944"]
[BlackElo "2064"]

1. c4 {[%clk 01:30:42]} {[%emt 00:00:17]} c5 {[%clk 01:28:57]} {[%emt
00:02:02]} 2. g3 {[%clk 01:30:39]} {[%emt 00:00:33]} Nc6 {[%clk 01:27:38]}
{[%emt 00:01:49]} 3. Bg2 {[%clk 01:30:17]} {[%emt 00:00:53]} g6 {[%clk
01:27:56]} {[%emt 00:00:12]} 4. Nc3 {[%clk 01:30:01]} {[%emt 00:00:46]} Bg7
{[%clk 01:28:17]} {[%emt 00:00:09]} 5. Nf3 {[%clk 01:30:23]} {[%emt 00:00:08]}
d6 {[%clk 01:28:25]} {[%emt 00:00:21]} 6. O-O {[%clk 01:30:03]} {[%emt
00:00:50]} Bf5 {[%clk 01:28:49]} {[%emt 00:00:07]} 7. h3 {[%clk 01:30:02]}
{[%emt 00:00:31]} Qc8 {[%clk 01:12:38]} {[%emt 00:16:41]} 8. Kh2 {[%clk
01:30:08]} {[%emt 00:00:24]} h6 {[%clk 01:11:53]} {[%emt 00:01:15]} 9. d3
{[%clk 01:28:21]} {[%emt 00:02:17]} g5 {[%clk 01:11:57]} {[%emt 00:00:26]} 10.
e4 {[%clk 01:17:22]} {[%emt 00:11:29]} Bd7 {[%clk 01:09:36]} {[%emt 00:02:50]}
11. Be3 {[%clk 01:15:17]} {[%emt 00:02:35]} g4 {[%clk 01:06:25]} {[%emt
00:03:41]} 12. Ng1 {[%clk 01:11:48]} {[%emt 00:03:59]} gxh3 {[%clk 01:03:59]}
{[%emt 00:02:56]} 13. Bxh3 {[%clk 01:09:05]} {[%emt 00:03:15]} Nf6 {[%clk
01:01:45]} {[%emt 00:02:43]} 14. f3 {[%clk 01:00:19]} {[%emt 00:09:15]} h5
{[%clk 00:57:34]} {[%emt 00:04:41]} 15. Bxd7+ {[%clk 00:53:20]} {[%emt
00:07:31]} Qxd7 {[%clk 00:57:11]} {[%emt 00:00:52]} 16. Kg2 {[%clk 00:51:35]}
{[%emt 00:02:15]} O-O-O {[%clk 00:50:09]} {[%emt 00:07:31]} 17. Nh3 {[%clk
00:48:07]} {[%emt 00:03:58]} Rdg8 {[%clk 00:44:39]} {[%emt 00:06:00]} 18. a3
{[%clk 00:43:29]} {[%emt 00:05:10]} h4 {[%clk 00:41:12]} {[%emt 00:03:56]} 19.
g4 {[%clk 00:42:10]} {[%emt 00:01:48]} Nxg4 {[%clk 00:31:40]} {[%emt 00:10:02]}
20. fxg4 {[%clk 00:41:38]} {[%emt 00:01:02]} Bxc3 {[%clk 00:31:57]} {[%emt
00:00:13]} 21. bxc3 {[%clk 00:33:51]} {[%emt 00:08:17]} Rxg4+ {[%clk 00:32:11]}
{[%emt 00:00:15]} 22. Kf2 {[%clk 00:32:50]} {[%emt 00:01:32]} Rg3 {[%clk
00:28:39]} {[%emt 00:04:02]} 23. Nf4 {[%clk 00:26:08]} {[%emt 00:07:13]} Ne5
{[%clk 00:28:06]} {[%emt 00:01:00]} 24. Bc1 {[%clk 00:22:46]} {[%emt 00:03:55]}
Rhg8 {[%clk 00:25:38]} {[%emt 00:02:57]} 25. Rb1 {[%clk 00:19:14]} {[%emt
00:04:03]} Ng4+ {[%clk 00:22:34]} {[%emt 00:03:34]} 26. Ke1 {[%clk 00:17:42]}
{[%emt 00:02:01]} Nh2 {[%clk 00:22:39]} {[%emt 00:00:25]} 27. Rh1 {[%clk
00:16:48]} {[%emt 00:01:25]} Rg1+ {[%clk 00:22:55]} {[%emt 00:00:12]} 28. Kf2
{[%clk 00:15:05]} {[%emt 00:02:13]} Rxd1 {[%clk 00:23:12]} {[%emt 00:00:14]} 29.
Rxd1 {[%clk 00:15:30]} {[%emt 00:00:06]} Qg4 {[%clk 00:23:15]} {[%emt
00:00:26]} 30. Ke1 {[%clk 00:08:49]} {[%emt 00:07:12]} Nf3+ {[%clk 00:21:24]}
{[%emt 00:02:20]} 31. Kf2 {[%clk 00:08:36]} {[%emt 00:00:43]} Qg3+ {[%clk
00:20:06]} {[%emt 00:01:47]} 32. Ke2 {[%clk 00:05:37]} {[%emt 00:03:30]} Qh2+
{[%clk 00:19:08]} {[%emt 00:01:27]} 33. Ke3 {[%clk 00:05:33]} {[%emt 00:00:35]}
Rg3 {[%clk 00:19:10]} {[%emt 00:00:28]} 34. Ne2 {[%clk 00:05:07]} {[%emt
00:00:56]} Nd4+ {[%clk 00:17:42]} {[%emt 00:01:57]} 35. Nxg3 {[%clk 00:04:48]}
{[%emt 00:00:51]} Qxg3+ {[%clk 00:18:01]} {[%emt 00:00:11]} 36. Kd2 {[%clk
00:04:54]} {[%emt 00:00:23]} Qf2# {[%clk 00:18:20]} {[%emt 00:00:10]} 0-1

[Event "Schack-SM 2024: Veteran-SM 65+"]
[Site "Fortnox Arena, Hejaregatan 5, Vaxjo, Sweden"]
[Date "2024.06.30"]
[Round "2.3"]
[White "Wengholm, Anders"]
[Black "Wedin, Svante"]
[Result "1/2-1/2"]
[TimeControl "90 minutes for 40 moves + 30 minutes for the rest of the game + 30 seconds per move from move one."]
[WhiteTitle "CM"]
[WhiteElo "2180"]
[BlackElo "1907"]

1. Nf3 {[%clk 01:30:08]} {[%emt 00:00:11]} Nf6 {[%clk 01:30:53]} {[%emt
00:00:08]} 2. c4 {[%clk 01:29:52]} {[%emt 00:00:47]} c5 {[%clk 01:31:15]}
{[%emt 00:00:06]} 3. g3 {[%clk 01:29:29]} {[%emt 00:00:53]} Nc6 {[%clk
01:30:38]} {[%emt 00:01:08]} 4. Bg2 {[%clk 01:29:20]} {[%emt 00:00:38]} g6
{[%clk 01:31:01]} {[%emt 00:00:09]} 5. Nc3 {[%clk 01:29:15]} {[%emt 00:00:34]}
Bg7 {[%clk 01:31:24]} {[%emt 00:00:06]} 6. d4 {[%clk 01:29:35]} {[%emt
00:00:10]} cxd4 {[%clk 01:31:47]} {[%emt 00:00:07]} 7. Nxd4 {[%clk 01:29:59]}
{[%emt 00:00:07]} O-O {[%clk 01:31:45]} {[%emt 00:00:32]} 8. O-O {[%clk
01:30:21]} {[%emt 00:00:08]} Qb6 {[%clk 01:26:08]} {[%emt 00:06:07]} 9. Nc2
{[%clk 01:30:06]} {[%emt 00:00:44]} d6 {[%clk 01:23:32]} {[%emt 00:03:07]} 10.
b3 {[%clk 01:29:58]} {[%emt 00:00:38]} Be6 {[%clk 01:22:03]} {[%emt 00:01:59]}
11. Be3 {[%clk 01:28:09]} {[%emt 00:02:19]} Qa5 {[%clk 01:21:41]} {[%emt
00:00:51]} 12. Bd2 {[%clk 01:28:32]} {[%emt 00:00:08]} Qh5 {[%clk 01:21:38]}
{[%emt 00:00:32]} 13. Rc1 {[%clk 01:27:25]} {[%emt 00:01:38]} Bh3 {[%clk
01:19:31]} {[%emt 00:02:36]} 14. f3 {[%clk 01:19:03]} {[%emt 00:08:53]} Bxg2
{[%clk 01:10:24]} {[%emt 00:09:37]} 15. Kxg2 {[%clk 01:18:51]} {[%emt
00:00:41]} d5 {[%clk 01:08:25]} {[%emt 00:02:29]} 16. cxd5 {[%clk 01:13:11]}
{[%emt 00:06:11]} Nxd5 {[%clk 01:08:23]} {[%emt 00:00:32]} 17. Nxd5 {[%clk
01:13:25]} {[%emt 00:00:16]} Qxd5 {[%clk 01:08:50]} {[%emt 00:00:03]} 18. Nb4
{[%clk 01:09:59]} {[%emt 00:03:56]} Nxb4 {[%clk 00:59:58]} {[%emt 00:09:22]} 19.
Bxb4 {[%clk 01:09:01]} {[%emt 00:01:27]} Qe6 {[%clk 01:00:03]} {[%emt
00:00:25]} 20. Rc4 {[%clk 01:07:01]} {[%emt 00:02:30]} Rfd8 {[%clk 00:55:51]}
{[%emt 00:04:42]} 21. Qc2 {[%clk 01:05:43]} {[%emt 00:01:49]} Bf6 {[%clk
00:50:19]} {[%emt 00:06:02]} 22. Rd1 {[%clk 00:58:08]} {[%emt 00:08:05]} Rxd1
{[%clk 00:40:43]} {[%emt 00:10:06]} 23. Qxd1 {[%clk 00:58:29]} {[%emt
00:00:08]} Qa6 {[%clk 00:37:08]} {[%emt 00:04:05]} 24. Qc2 {[%clk 00:48:13]}
{[%emt 00:10:47]} Rd8 {[%clk 00:32:48]} {[%emt 00:04:49]} 25. a4 {[%clk
00:45:39]} {[%emt 00:03:04]} Qe6 {[%clk 00:26:07]} {[%emt 00:07:12]} 26. Rc7
{[%clk 00:38:16]} {[%emt 00:07:53]} 1/2-1/2